fUSD/lending_fUSD_20250208
["ID","MTS","AMOUNT","RATE_DAILY","PERIOD"]
[352265857,1739021445298,-500.0,0.00010254,2]
[352265859,1739021445308,-500.0,0.00010254,2]
[352265861,1739021445318,-500.0,0.00010254,2]
[352265863,1739021445328,-734.58,0.00010254,2]
[352265865,1739021445343,-500.0,0.00010254,2]
[352265867,1739021445352,-500.0,0.00010254,2]
[352265869,1739021445362,-502.58172948,0.00010254,2]
[352265871,1739021445373,-500.0,0.00010254,2]
[352265873,1739021445383,-500.0,0.00010254,2]
[352265875,1739021445394,-584.98,0.00010254,2]
[352265877,1739021445405,-500.0,0.00010254,2]
[352265879,1739021445414,-1132.16,0.00010254,2]
[352265881,1739021445424,-887.38,0.00010254,2]
[352265883,1739021445434,-500.0,0.00010254,2]
[352265885,1739021445444,-613.72,0.00010254,2]
[352265887,1739021445454,-500.0,0.00010254,2]
[352265889,1739021445464,-500.0,0.00010254,2]
[352265891,1739021445473,-940.72,0.00010254,2]
[352265893,1739021445483,-500.0,0.00010254,2]
[352265895,1739021445493,-500.0,0.00010254,2]
[352265897,1739021445502,-932.43,0.00010254,2]
[352265899,1739021445512,-500.0,0.00010254,2]
[352265901,1739021445521,-198.27228666,0.00010254,2]
[352265903,1739021445531,-500.0,0.00010254,2]
[352265904,1739021445540,-500.0,0.00010254,2]
[352265906,1739021445550,-500.0,0.00010254,2]
[352265908,1739021445559,-152.672805,0.00010254,2]
[352265910,1739021445569,-500.0,0.00010254,2]
[352265912,1739021445578,-1118.23,0.00010254,2]
[352265914,1739021445591,-500.0,0.00010254,2]
[352265916,1739021445601,-153.55625,0.00010254,2]
[352265918,1739021445611,-500.0,0.00010254,2]
[352265920,1739021445621,-760.9,0.00010254,2]
[352265922,1739021445630,-500.0,0.00010254,2]
[352265924,1739021445641,-519.02099116,0.00010254,2]
[352265926,1739021445651,-500.0,0.00010254,2]
[352265929,1739021445661,-894.43,0.00010254,2]
[352265930,1739021445671,-500.0,0.00010254,2]
[352265932,1739021445680,-755.08,0.00010254,2]
[352265934,1739021445689,-701.54,0.00010254,2]
[352265936,1739021445698,-500.0,0.00010254,2]
[352265938,1739021445707,-500.0,0.00010254,2]
[352265940,1739021445717,-500.0,0.00010254,2]
[352265942,1739021445727,-500.0,0.00010254,2]
[352265944,1739021445736,-500.0,0.00010254,2]
[352265946,1739021445745,-500.0,0.00010254,2]
[352265948,1739021445754,-926.98,0.00010254,2]
[352265950,1739021445763,-500.0,0.00010254,2]
[352265952,1739021445773,-500.0,0.00010254,2]
[352265954,1739021445782,-500.0,0.00010254,2]
[352265956,1739021445791,-500.0,0.00010254,2]
[352265958,1739021445800,-500.0,0.00010254,2]
[352265960,1739021445810,-500.0,0.00010254,2]
[352265962,1739021445819,-500.0,0.00010254,2]
[352265964,1739021445829,-825.95,0.00010254,2]
[352265968,1739021445841,-543.93821262,0.00010254,2]
[352265970,1739021445850,-500.0,0.00010254,2]
[352265972,1739021445859,-500.0,0.00010254,2]
[352265974,1739021445869,-500.0,0.00010254,2]
[352265976,1739021445878,-569.58,0.00010254,2]
[352265978,1739021445888,-500.0,0.00010254,2]
[352265980,1739021445897,-151.29257374,0.00010254,2]
[352265982,1739021445906,-500.0,0.00010254,2]
[352265984,1739021445915,-500.0,0.00010254,2]
[352265985,1739021445924,-500.0,0.00010254,2]
[352265987,1739021445934,-1113.59,0.00010254,2]
[352265989,1739021445943,-500.0,0.00010254,2]
[352265991,1739021445953,-500.0,0.00010254,2]
[352265993,1739021445963,-307.42057673,0.00010254,2]
[352265995,1739021445972,-500.0,0.00010254,2]
[352265997,1739021445982,-500.0,0.00010254,2]
[352265999,1739021445991,-500.0,0.00010254,2]
[352266001,1739021446001,-500.0,0.00010254,2]
[352266003,1739021446010,-291.00012165,0.00010254,2]
[352266005,1739021446019,-500.0,0.00010254,2]
[352266007,1739021446029,-500.0,0.00010254,2]
[352266008,1739021446038,-500.0,0.00010254,2]
[352266009,1739021446047,-1098.41,0.00010254,2]
[352266010,1739021446057,-500.0,0.00010254,2]
[352266011,1739021446067,-500.0,0.00010254,2]
[352266012,1739021446077,-500.0,0.00010254,2]
[352266013,1739021446089,-500.0,0.00010254,2]
[352266014,1739021446099,-500.0,0.00010254,2]
[352266015,1739021446109,-500.0,0.00010254,2]
[352266016,1739021446119,-878.51,0.00010254,2]
[352266017,1739021446129,-524.67,0.00010254,2]
[352266018,1739021446139,-589.79,0.00010254,2]
[352266020,1739021446149,-500.0,0.00010254,2]
[352266021,1739021446158,-500.0,0.00010254,2]
[352266023,1739021446168,-776.8,0.00010254,2]
[352266025,1739021446177,-1439.01,0.00010254,2]
[352266027,1739021446186,-434.43,0.00010254,2]
[352266029,1739021446197,-503.38175722,0.00010254,2]
[352266031,1739021446211,-977.59,0.00010254,2]
[352266033,1739021446220,-500.0,0.00010254,2]
[352266036,1739021446230,-500.0,0.00010254,2]
[352266037,1739021446241,-518.87,0.00010254,2]
[352266039,1739021446250,-500.0,0.00010254,2]
[352266041,1739021446260,-586.18,0.00010254,2]
[352266044,1739021446270,-500.0,0.00010254,2]
[352266046,1739021446281,-500.0,0.00010254,2]
[352266047,1739021446291,-500.0,0.00010254,2]
[352266049,1739021446301,-855.52,0.00010254,2]
[352266051,1739021446310,-913.73,0.00010254,2]
[352266053,1739021446319,-548.56,0.00010254,2]
[352266055,1739021446329,-500.0,0.00010254,2]
[352266057,1739021446341,-500.0,0.00010254,2]
[352266060,1739021446352,-500.0,0.00010254,2]
[352266062,1739021446361,-500.0,0.00010254,2]
[352266063,1739021446371,-500.0,0.00010254,2]
[352266065,1739021446380,-942.25,0.00010254,2]
[352266067,1739021446389,-500.0,0.00010254,2]
[352266069,1739021446399,-500.0,0.00010254,2]
[352266071,1739021446408,-500.0,0.00010254,2]
[352266073,1739021446418,-643.97,0.00010254,2]
[352266075,1739021446428,-908.34,0.00010254,2]
[352266077,1739021446437,-936.57,0.00010254,2]
[352266080,1739021446447,-742.91,0.00010254,2]
[352266082,1739021446457,-500.0,0.00010254,2]
[352266083,1739021446467,-503.71587708,0.00010254,2]
[352266086,1739021446476,-900.55,0.00010254,2]
[352266087,1739021446486,-500.0,0.00010254,2]
[352266089,1739021446496,-500.0,0.00010254,2]
[352266092,1739021446507,-500.0,0.00010254,2]
[352266093,1739021446517,-908.88,0.00010254,2]
[352266096,1739021446528,-500.0,0.00010254,2]
[352266097,1739021446538,-978.2,0.00010254,2]
[352266099,1739021446548,-908.42,0.00010254,2]
[352266101,1739021446558,-500.0,0.00010254,2]
[352266103,1739021446568,-732.41,0.00010254,2]
[352266105,1739021446578,-500.0,0.00010254,2]
[352266107,1739021446591,-500.0,0.00010254,2]
[352266109,1739021446601,-1214.33,0.00010254,2]
[352266111,1739021446610,-554.39,0.00010254,2]
[352266113,1739021446620,-1010.15,0.00010254,2]
[352266115,1739021446629,-2428.03,0.00010254,2]
[352266117,1739021446639,-500.0,0.00010254,2]
[352266119,1739021446649,-884.5,0.00010254,2]
[352266121,1739021446659,-1200.16,0.00010254,2]
[352266123,1739021446668,-5420.56,0.00010254,2]
[352266125,1739021446680,-588.6459542,0.00010254,2]
[352266127,1739021446689,-1258.75,0.00010254,2]
[352266129,1739021446699,-500.0,0.00010254,2]
[352266131,1739021446709,-1118.69,0.00010254,2]
[352266133,1739021446718,-459.53488157,0.00010254,2]
[352266135,1739021446727,-500.0,0.00010254,2]
[352266137,1739021446737,-1588.33,0.00010254,2]
[352266139,1739021446746,-896.11,0.00010254,2]
[352266141,1739021446755,-500.0,0.00010254,2]
[352266143,1739021446764,-500.0,0.00010254,2]
[352266145,1739021446773,-794.47,0.00010254,2]
[352266147,1739021446782,-1439.17,0.00010254,2]
[352266149,1739021446791,-500.0,0.00010254,2]
[352266151,1739021446800,-571.6,0.00010254,2]
[352266153,1739021446810,-920.36,0.00010254,2]
[352266155,1739021446819,-1334.12,0.00010254,2]
[352266157,1739021446827,-1217.52,0.00010254,2]
[352266159,1739021446838,-1131.43,0.00010254,2]
[352266161,1739021446848,-588.17,0.00010254,2]
[352266163,1739021446857,-991.46,0.00010254,2]
[352266165,1739021446867,-500.0,0.00010254,2]
[352266167,1739021446877,-1017.16,0.00010254,2]
[352266169,1739021446886,-733.79,0.00010254,2]
[352266171,1739021446895,-3270.86,0.00010254,2]
[352266173,1739021446904,-569.88,0.00010254,2]
[352266175,1739021446914,-1422.78,0.00010254,2]
[352266177,1739021446923,-1321.24,0.00010254,2]
[352266179,1739021446932,-500.0,0.00010254,2]
[352266181,1739021446942,-2291.76,0.00010254,2]
[352266183,1739021446951,-1009.53,0.00010254,2]
[352266185,1739021446960,-500.0,0.00010254,2]
[352266187,1739021446970,-1020.34,0.00010254,2]
[352266189,1739021446979,-560.48,0.00010254,2]
[352266191,1739021446988,-518.57,0.00010254,2]
[352266193,1739021446999,-888.74,0.00010254,2]
[352266195,1739021447012,-6776.61,0.00010254,2]
[352266198,1739021447026,-500.0,0.00010254,2]
[352266200,1739021447038,-1427.19,0.00010254,2]
[352266202,1739021447050,-500.0,0.00010254,2]
[352266205,1739021447061,-2658.58,0.00010254,2]
[352266207,1739021447072,-1649.01,0.00010254,2]
[352266209,1739021447084,-797.73,0.00010254,2]
[352266211,1739021447097,-969.25,0.00010254,2]
[352266214,1739021447108,-1236.49,0.00010254,2]
[352266216,1739021447120,-1376.87,0.00010254,2]
[352266218,1739021447132,-1150.23,0.00010254,2]
[352266221,1739021447146,-500.0,0.00010254,2]
[352266223,1739021447159,-500.0,0.00010254,2]
[352266225,1739021447171,-1458.93,0.00010254,2]
[352266228,1739021447182,-2061.0,0.00010254,2]
[352266230,1739021447194,-1575.14,0.00010254,2]
[352266232,1739021447207,-1087.69,0.00010254,2]
[352266234,1739021447218,-1008.68,0.00010254,2]
[352266236,1739021447231,-1024.98,0.00010254,2]
[352266238,1739021447244,-1276.35,0.00010254,2]
[352266241,1739021447258,-5315.42,0.00010254,2]
[352266243,1739021447271,-500.0,0.00010254,2]
[352266245,1739021447284,-1639.56,0.00010254,2]
[352266247,1739021447296,-609.74,0.00010254,2]
[352266250,1739021447309,-887.92,0.00010254,2]
[352266252,1739021447321,-866.96,0.00010254,2]
[352266255,1739021447336,-1491.22,0.00010254,2]
[352266257,1739021447349,-500.0,0.00010254,2]
[352266259,1739021447363,-2150.42,0.00010254,2]
[352266262,1739021447376,-1999.01,0.00010254,2]
[352266264,1739021447389,-500.0,0.00010254,2]
[352266266,1739021447402,-500.0,0.00010254,2]
[352266268,1739021447414,-500.0,0.00010254,2]
[352266270,1739021447427,-1238.85,0.00010254,2]
[352266271,1739021447440,-500.0,0.00010254,2]
[352266273,1739021447454,-1772.33,0.00010254,2]
[352266275,1739021447467,-723.22,0.00010254,2]
[352266277,1739021447480,-524.48,0.00010254,2]
[352266279,1739021447492,-1821.75,0.00010254,2]
[352266281,1739021447504,-500.0,0.00010254,2]
[352266283,1739021447516,-2569.9,0.00010254,2]
[352266284,1739021447527,-500.0,0.00010254,2]
[352266286,1739021447537,-505.19390101,0.00010254,2]
[352266288,1739021447549,-979.84,0.00010254,2]
[352266290,1739021447560,-1589.1,0.00010254,2]
[352266292,1739021447573,-500.0,0.00010254,2]
[352266294,1739021447586,-3567.02,0.00010254,2]
[352266295,1739021447597,-500.0,0.00010254,2]
[352266297,1739021447608,-500.0,0.00010254,2]
[352266299,1739021447618,-646.94,0.00010254,2]
[352266301,1739021447630,-1268.56,0.00010254,2]
[352266303,1739021447643,-1774.78,0.00010254,2]
[352266305,1739021447655,-500.0,0.00010254,2]
[352266307,1739021447668,-500.0,0.00010254,2]
[352266308,1739021447680,-1824.03,0.00010254,2]
[352266310,1739021447691,-2166.29,0.00010254,2]
[352266312,1739021447702,-718.34,0.00010254,2]
[352266314,1739021447714,-1000.0,0.00010254,2]
[352266316,1739021447726,-2367.62,0.00010254,2]
[352266317,1739021447738,-967.44,0.00010254,2]
[352266319,1739021447749,-170.55210844,0.00010254,2]
[352266321,1739021447760,-996.19,0.00010254,2]
[352266323,1739021447771,-978.89,0.00010254,2]
[352266325,1739021447783,-1164.39,0.00010254,2]
[352266327,1739021447793,-1326.59,0.00010254,2]
[352266328,1739021447804,-314.27464386,0.00010254,2]
[352266330,1739021447816,-1201.48,0.00010254,2]
[352266332,1739021447827,-2912.96,0.00010254,2]
[352266334,1739021447840,-1010.66,0.00010254,2]
[352266336,1739021447852,-500.0,0.00010254,2]
[352266338,1739021447864,-1794.88,0.00010254,2]
[352266340,1739021447876,-1069.33,0.00010254,2]
[352266342,1739021447888,-678.89,0.00010254,2]
[352266344,1739021447901,-1002.55,0.00010254,2]
[352266346,1739021447913,-500.0,0.00010254,2]
[352266348,1739021447924,-2141.6,0.00010254,2]
[352266350,1739021447936,-564.37,0.00010254,2]
[352266352,1739021447949,-706.03,0.00010254,2]
[352266354,1739021447961,-670.39,0.00010254,2]
[352266356,1739021447973,-830.2,0.00010254,2]
[352266358,1739021447984,-500.0,0.00010254,2]
[352266360,1739021447996,-501.1948617,0.00010255,2]
[352266362,1739021448008,-304.2246319,0.00010255,2]
[352266364,1739021448020,-500.0,0.00010255,2]
[352266366,1739021448032,-500.0,0.00010255,2]
[352266368,1739021448046,-500.0,0.00010255,2]
[352266370,1739021448059,-500.0,0.00010255,2]
[352266371,1739021448071,-500.0,0.00010255,2]
[352266373,1739021448082,-500.0,0.00010255,2]
[352266375,1739021448094,-500.0,0.00010255,2]
[352266377,1739021448106,-500.0,0.00010255,2]
[352266379,1739021448118,-500.0,0.00010255,2]
[352266381,1739021448130,-500.0,0.00010255,2]
[352266383,1739021448142,-500.0,0.00010255,2]
[352266385,1739021448154,-500.0,0.00010255,2]
[352266387,1739021448166,-500.0,0.00010255,2]
[352266389,1739021448179,-500.0,0.00010255,2]
[352266391,1739021448190,-500.0,0.00010255,2]
[352266393,1739021448204,-500.0,0.00010255,2]
[352266394,1739021448216,-500.0,0.00010255,2]
[352266397,1739021448228,-500.0,0.00010255,2]
[352266398,1739021448246,-500.0,0.00010255,2]
[352266400,1739021448258,-500.0,0.00010255,2]
[352266402,1739021448269,-500.0,0.00010255,2]
[352266404,1739021448283,-500.0,0.00010255,2]
[352266406,1739021448294,-500.0,0.00010255,2]
[352266408,1739021448307,-511.22277683,0.00010255,2]
[352266410,1739021448319,-500.0,0.00010255,2]
[352266412,1739021448330,-500.0,0.00010255,2]
[352266414,1739021448343,-500.0,0.00010255,2]
[352266416,1739021448355,-500.0,0.00010255,2]
[352266418,1739021448367,-500.0,0.00010255,2]
[352266419,1739021448379,-500.0,0.00010255,2]
[352266421,1739021448390,-500.0,0.00010255,2]
[352266423,1739021448402,-500.0,0.00010255,2]
[352266425,1739021448413,-500.0,0.00010255,2]
[352266427,1739021448425,-500.0,0.00010255,2]
[352266429,1739021448436,-500.0,0.00010255,2]
[352266431,1739021448447,-502.29521538,0.00010255,2]
[352266433,1739021448458,-500.0,0.00010255,2]
[352266435,1739021448470,-509.84,0.00010255,2]
[352266437,1739021448483,-500.0,0.00010255,2]
[352266438,1739021448495,-500.0,0.00010255,2]
[352266440,1739021448507,-500.0,0.00010255,2]
[352266442,1739021448519,-500.0,0.00010255,2]
[352266444,1739021448531,-500.0,0.00010255,2]
[352266446,1739021448543,-500.0,0.00010255,2]
[352266448,1739021448555,-1034.4,0.00010255,2]
[352266450,1739021448567,-500.0,0.00010255,2]
[352266452,1739021448579,-1017.61,0.00010255,2]
[352266454,1739021448592,-500.0,0.00010255,2]
[352266456,1739021448604,-1000.22,0.00010255,2]
[352266457,1739021448616,-500.0,0.00010255,2]
[352266459,1739021448628,-500.0,0.00010255,2]
[352266461,1739021448640,-892.76,0.00010255,2]
[352266463,1739021448652,-500.0,0.00010255,2]
[352266465,1739021448663,-500.0,0.00010255,2]
[352266467,1739021448675,-500.0,0.00010255,2]
[352266469,1739021448686,-500.0,0.00010255,2]
[352266471,1739021448696,-538.2,0.00010255,2]
[352266472,1739021448707,-500.0,0.00010273,2]
[352266474,1739021448719,-500.0,0.0001039,2]
[352266476,1739021448731,-500.0,0.0001039,2]
[352266478,1739021448743,-500.0,0.0001039,2]
[352266480,1739021448755,-500.0,0.0001039,2]
[352266482,1739021448766,-264.4411219,0.0001039,2]
[352266484,1739021448777,-500.0,0.0001039,2]
[352266486,1739021448789,-500.0,0.0001039,2]
[352266488,1739021448801,-500.0,0.0001039,2]
[352266490,1739021448812,-500.0,0.0001039,2]
[352266492,1739021448824,-500.0,0.0001039,2]
[352266494,1739021448837,-500.0,0.0001039,2]
[352266496,1739021448849,-500.0,0.0001039,2]
[352266497,1739021448861,-502.94401873,0.0001039,2]
[352266499,1739021448872,-500.0,0.0001039,2]
[352266501,1739021448883,-500.0,0.0001039,2]
[352266503,1739021448895,-500.0,0.0001039,2]
[352266505,1739021448906,-500.0,0.0001039,2]
[352266507,1739021448918,-500.0,0.0001039,2]
[352266509,1739021448930,-503.50560142,0.0001039,2]
[352266511,1739021448941,-515.18,0.0001039,2]
[352266513,1739021448953,-500.0,0.0001039,2]
[352266515,1739021448966,-500.0,0.0001039,2]
[352266517,1739021448978,-500.0,0.0001039,2]
[352266520,1739021448991,-500.0,0.0001039,2]
[352266522,1739021449002,-500.0,0.0001039,2]
[352266523,1739021449014,-500.0,0.0001039,2]
[352266524,1739021449026,-500.0,0.0001039,2]
[352266525,1739021449038,-500.0,0.0001039,2]
[352266526,1739021449049,-503.41012155,0.0001039,2]
[352266527,1739021449060,-500.0,0.0001039,2]
[352266528,1739021449071,-647.51131477,0.0001039,2]
[352266529,1739021449083,-541.35,0.0001039,2]
[352266530,1739021449098,-500.0,0.0001039,2]
[352266531,1739021449109,-501.92,0.0001039,2]
[352266532,1739021449119,-500.0,0.0001039,2]
[352266533,1739021449130,-500.0,0.0001039,2]
[352266534,1739021449142,-500.0,0.0001039,2]
[352266535,1739021449153,-500.0,0.0001039,2]
[352266536,1739021449164,-500.0,0.0001039,2]
[352266537,1739021449175,-500.0,0.0001039,2]
[352266538,1739021449186,-500.0,0.0001039,2]
[352266539,1739021449199,-500.0,0.0001039,2]
[352266540,1739021449210,-500.0,0.0001039,2]
[352266542,1739021449221,-500.0,0.0001039,2]
[352266543,1739021449231,-500.0,0.0001039,2]
[352266545,1739021449243,-500.0,0.0001039,2]
[352266547,1739021449254,-505.39710402,0.0001039,2]
[352266549,1739021449265,-500.0,0.0001039,2]
[352266551,1739021449278,-504.33548523,0.0001039,2]
[352266553,1739021449290,-500.0,0.0001039,2]
[352266556,1739021449301,-500.0,0.0001039,2]
[352266558,1739021449312,-500.0,0.0001039,2]
[352266560,1739021449323,-500.0,0.0001039,2]
[352266562,1739021449337,-500.0,0.0001039,2]
[352266564,1739021449349,-500.0,0.0001039,2]
[352266566,1739021449360,-500.0,0.0001039,2]
[352266568,1739021449371,-500.0,0.0001039,2]
[352266570,1739021449383,-500.0,0.0001039,2]
[352266573,1739021449394,-500.0,0.0001039,2]
[352266575,1739021449405,-500.0,0.0001039,2]
[352266577,1739021449416,-500.0,0.0001039,2]
[352266579,1739021449426,-500.0,0.0001039,2]
[352266581,1739021449437,-500.0,0.0001039,2]
[352266583,1739021449448,-500.0,0.0001039,2]
[352266585,1739021449458,-504.54151455,0.0001039,2]
[352266587,1739021449468,-500.0,0.0001039,2]
[352266590,1739021449479,-500.0,0.0001039,2]
[352266592,1739021449490,-500.0,0.0001039,2]
[352266594,1739021449500,-601.85514606,0.0001039,2]
[352266596,1739021449511,-500.0,0.0001039,2]
[352266598,1739021449521,-476.62926556,0.0001039,2]
[352266600,1739021449531,-500.0,0.0001039,2]
[352266602,1739021449542,-500.0,0.0001039,2]
[352266604,1739021449552,-500.0,0.0001039,2]
[352266606,1739021449562,-500.0,0.0001039,2]
[352266608,1739021449572,-500.0,0.0001039,2]
[352266610,1739021449583,-500.0,0.0001039,2]
[352266613,1739021449596,-500.0,0.0001039,2]
[352266615,1739021449606,-500.0,0.0001039,2]
[352266617,1739021449617,-500.0,0.0001039,2]
[352266619,1739021449628,-500.0,0.0001039,2]
[352266621,1739021449638,-500.0,0.0001039,2]
[352266623,1739021449649,-500.0,0.0001039,2]
[352266625,1739021449660,-502.51130787,0.0001039,2]
[352266627,1739021449671,-500.0,0.0001039,2]
[352266630,1739021449682,-500.0,0.0001039,2]
[352266632,1739021449693,-500.0,0.0001039,2]
[352266634,1739021449704,-500.0,0.0001039,2]
[352266636,1739021449715,-500.0,0.0001039,2]
[352266638,1739021449725,-501.77,0.0001039,2]
[352266640,1739021449735,-500.0,0.0001039,2]
[352266642,1739021449746,-500.0,0.0001039,2]
[352266644,1739021449757,-500.0,0.0001039,2]
[352266646,1739021449767,-500.0,0.0001039,2]
[352266648,1739021449778,-500.0,0.0001039,2]
[352266650,1739021449788,-500.0,0.0001039,2]
[352266653,1739021449799,-500.0,0.0001039,2]
[352266655,1739021449809,-500.0,0.0001039,2]
[352266657,1739021449819,-500.0,0.0001039,2]
[352266659,1739021449830,-500.0,0.0001039,2]
[352266661,1739021449841,-245.42882643,0.0001039,2]
[352266663,1739021449852,-500.0,0.0001039,2]
[352266665,1739021449863,-500.0,0.0001039,2]
[352266667,1739021449874,-181.95790656,0.0001039,2]
[352266669,1739021449885,-500.0,0.0001039,2]
[352266671,1739021449895,-500.0,0.0001039,2]
[352266674,1739021449906,-500.0,0.0001039,2]
[352266676,1739021449916,-500.0,0.0001039,2]
[352266678,1739021449927,-610.88099121,0.0001039,2]
[352266680,1739021449938,-500.0,0.0001039,2]
[352266682,1739021449949,-500.0,0.0001039,2]
[352266684,1739021449959,-500.0,0.0001039,2]
[352266686,1739021449969,-500.0,0.0001039,2]
[352266688,1739021449979,-500.0,0.0001039,2]
[352266690,1739021449990,-500.0,0.0001039,2]
[352266693,1739021450000,-605.72,0.0001039,2]
[352266695,1739021450010,-500.0,0.0001039,2]
[352266697,1739021450021,-500.0,0.0001039,2]
[352266699,1739021450031,-500.0,0.0001039,2]
[352266701,1739021450042,-500.0,0.0001039,2]
[352266703,1739021450052,-500.0,0.0001039,2]
[352266705,1739021450063,-500.0,0.0001039,2]
[352266707,1739021450074,-500.0,0.0001039,2]
[352266709,1739021450084,-500.0,0.0001039,2]
[352266711,1739021450096,-500.0,0.0001039,2]
[352266713,1739021450106,-500.0,0.0001039,2]
[352266715,1739021450117,-504.6708023,0.0001039,2]
[352266718,1739021450127,-500.0,0.0001039,2]
[352266720,1739021450137,-500.0,0.0001039,2]
[352266760,1739021450531,-500.0,0.0001039,2]
[352266764,1739021450561,-500.0,0.0001039,2]
[352266767,1739021450574,-500.0,0.0001039,2]
[352266769,1739021450583,-500.0,0.0001039,2]
[352266771,1739021450596,-500.0,0.0001039,2]
[352266773,1739021450605,-500.0,0.0001039,2]
[352266775,1739021450614,-500.0,0.0001039,2]
[352266777,1739021450623,-500.0,0.0001039,2]
[352266779,1739021450632,-500.0,0.0001039,2]
[352266781,1739021450641,-500.0,0.0001039,2]
[352266783,1739021450650,-370.07388685,0.0001039,2]
[352266785,1739021450659,-500.0,0.0001039,2]
[352266787,1739021450668,-500.0,0.0001039,2]
[352266789,1739021450678,-500.0,0.0001039,2]
[352266790,1739021450687,-500.0,0.0001039,2]
[352266792,1739021450696,-509.50987224,0.0001039,2]
[352266794,1739021450706,-500.0,0.0001039,2]
[352266797,1739021450715,-500.0,0.0001039,2]
[352266798,1739021450725,-500.0,0.0001039,2]
[352266800,1739021450735,-500.0,0.0001039,2]
[352266802,1739021450745,-500.0,0.0001039,2]
[352266804,1739021450755,-500.0,0.0001039,2]
[352266806,1739021450764,-500.0,0.0001039,2]
[352266808,1739021450773,-500.0,0.0001039,2]
[352266810,1739021450783,-792.08,0.0001039,2]
[352266812,1739021450792,-500.0,0.0001039,2]
[352266814,1739021450801,-500.0,0.0001039,2]
[352266816,1739021450810,-526.57325189,0.0001039,2]
[352266818,1739021450819,-500.0,0.0001039,2]
[352266820,1739021450828,-500.0,0.0001039,2]
[352266822,1739021450840,-500.0,0.0001039,2]
[352266824,1739021450849,-500.0,0.0001039,2]
[352266826,1739021450859,-1089.73,0.0001039,2]
[352266828,1739021450868,-500.0,0.0001039,2]
[352266830,1739021450877,-733.81,0.0001039,2]
[352266832,1739021450887,-973.85,0.0001039,2]
[352266834,1739021450896,-2109.14,0.0001039,2]
[352266836,1739021450905,-933.15,0.0001039,2]
[352266838,1739021450914,-500.0,0.0001039,2]
[352266840,1739021450924,-613.73,0.0001039,2]
[352266842,1739021450933,-2019.15,0.0001039,2]
[352266844,1739021450942,-500.0,0.0001039,2]
[352266846,1739021450951,-693.14,0.0001039,2]
[352266847,1739021450961,-500.0,0.0001039,2]
[352266849,1739021450970,-500.0,0.0001039,2]
[352266851,1739021450979,-500.0,0.0001039,2]
[352266853,1739021450989,-1443.42,0.0001039,2]
[352266855,1739021450998,-1450.66,0.0001039,2]
[352266857,1739021451007,-500.0,0.0001039,2]
[352266859,1739021451016,-500.0,0.0001039,2]
[352266861,1739021451025,-500.0,0.0001039,2]
[352266863,1739021451035,-658.45,0.0001039,2]
[352266865,1739021451044,-500.0,0.0001039,2]
[352266867,1739021451053,-1943.65,0.0001039,2]
[352266869,1739021451062,-500.0,0.0001039,2]